bitfinex/quotes_BTCUSD_20250902
["timestamp","ask_amount","ask_price","bid_price","bid_amount"]
[1756776409940,0.81759044,109370.0,109360.0,0.00014128]
[1756776410178,0.18291413,109350.0,109330.0,0.00299]
[1756776410381,0.18296587,109310.0,109300.0,0.25652892]
[1756776410593,0.18296587,109310.0,109300.0,0.25856892]
[1756776410824,0.18296587,109310.0,109300.0,0.54803086]
[1756776411040,0.18296587,109310.0,109300.0,0.36803825]
[1756776411256,0.19284564,109310.0,109300.0,0.07857631]
[1756776411440,0.19284564,109310.0,109300.0,0.00503]
[1756776411677,0.19289265,109310.0,109300.0,0.00503]
[1756776412325,0.19289265,109310.0,109300.0,0.00903]
[1756776412794,0.19289265,109310.0,109300.0,0.00503]
[1756776413004,0.19289265,109310.0,109300.0,0.00803]
[1756776413211,0.34845265,109310.0,109300.0,0.00803]
[1756776415165,0.34849265,109310.0,109300.0,0.00803]
[1756776415957,0.19289265,109310.0,109300.0,0.00803]
[1756776416158,0.34849265,109310.0,109300.0,0.00803]
[1756776416985,0.19289265,109310.0,109300.0,0.00803]
[1756776417187,0.34849265,109310.0,109300.0,0.00803]
[1756776420197,0.34849265,109310.0,109300.0,0.2829286]
[1756776420198,4.701e-05,109310.0,109300.0,0.2829286]
[1756776420415,0.18301288,109310.0,109300.0,0.86185248]
[1756776420592,0.18301288,109310.0,109300.0,0.38940793]
[1756776420831,0.18301288,109310.0,109300.0,0.57239054]
[1756776421037,0.18301288,109310.0,109300.0,0.72799054]
[1756776421868,0.18301288,109310.0,109300.0,0.00803]
[1756776422943,0.18301288,109310.0,109300.0,0.00603]
[1756776423370,0.18301288,109310.0,109300.0,0.00703]
[1756776423583,0.18301288,109310.0,109300.0,0.00603]
[1756776423998,0.18301288,109310.0,109300.0,0.00703]
[1756776424429,0.18301288,109310.0,109300.0,0.00603]
[1756776425573,0.18301288,109310.0,109300.0,0.001]
[1756776425784,0.61287039,109310.0,109300.0,0.001]
[1756776427581,0.52301288,109310.0,109300.0,0.001]
[1756776430361,0.18298261,109300.0,109290.0,0.00312]
[1756776430598,0.33858261,109300.0,109290.0,0.00312]
[1756776430835,0.33858261,109300.0,109290.0,0.00524]
[1756776432339,0.18298261,109300.0,109290.0,0.00524]
[1756776432464,0.33858261,109300.0,109290.0,0.00524]
[1756776432977,0.33858261,109300.0,109290.0,0.00624]
[1756776437969,0.36608861,109300.0,109290.0,0.00624]
[1756776441595,0.45499876,109300.0,109290.0,0.001]
[1756776441848,0.38584531,109300.0,109290.0,0.001]
[1756776442109,0.38584531,109300.0,109290.0,0.00624]
[1756776442110,0.24739525,109300.0,109290.0,0.00624]
[1756776442337,0.24739677,109300.0,109290.0,0.00624]
[1756776442563,0.38580531,109300.0,109290.0,0.00624]
[1756776443692,0.24739666,109300.0,109290.0,0.00624]
[1756776443909,0.40295666,109300.0,109290.0,0.00624]
[1756776444154,0.24739666,109300.0,109290.0,0.00624]
[1756776444373,0.40295666,109300.0,109290.0,0.00624]
[1756776445304,0.38580531,109300.0,109290.0,0.00624]
[1756776445754,0.2028227,109300.0,109290.0,0.00624]
[1756776445990,0.33857288,109310.0,109290.0,0.57327192]
[1756776446206,0.38583183,109310.0,109290.0,0.56786443]
[1756776446431,0.38583183,109310.0,109300.0,0.00312]
[1756776446687,0.38583183,109310.0,109300.0,0.00524]
[1756776449341,0.38583183,109310.0,109300.0,0.00624]
[1756776450956,0.38583183,109310.0,109300.0,0.001]
[1756776451172,0.88352757,109310.0,109300.0,0.001]
[1756776451415,0.8499155,109310.0,109300.0,0.001]
[1756776451652,0.18298261,109300.0,109290.0,0.00312]
[1756776451868,0.20273856,109300.0,109290.0,0.00312]
[1756776452088,0.20273856,109300.0,109290.0,0.00524]
[1756776452740,0.23024556,109300.0,109290.0,0.00524]
[1756776453193,0.23024556,109300.0,109290.0,0.00624]
[1756776459514,0.36600961,109300.0,109290.0,0.18923935]
[1756776460016,0.33850261,109300.0,109290.0,0.18923935]
[1756776460201,0.33850261,109300.0,109290.0,0.00624]
[1756776461214,0.12329942,109300.0,109290.0,0.001]
[1756776461396,0.30628203,109300.0,109290.0,0.00618]
[1756776462934,0.18298261,109300.0,109290.0,0.00618]
[1756776463173,0.33846261,109300.0,109290.0,0.00618]
[1756776463377,0.33846261,109300.0,109290.0,0.18917935]
[1756776464251,0.33846261,109300.0,109290.0,0.00618]
[1756776464466,0.33846261,109300.0,109290.0,0.00422]
[1756776464903,0.33846261,109300.0,109290.0,0.00618]
[1756776465626,0.33846261,109300.0,109290.0,0.00422]
[1756776466064,0.33846261,109300.0,109290.0,0.00618]
[1756776466251,0.33846261,109300.0,109290.0,0.18917935]
[1756776467331,0.18298261,109300.0,109290.0,0.18917935]
[1756776468294,0.55051988,109310.0,109290.0,0.18917935]
[1756776468500,0.70599988,109310.0,109300.0,0.18298261]
[1756776468692,0.70599988,109310.0,109300.0,0.00518]
[1756776469489,0.55051988,109310.0,109300.0,0.18816261]
[1756776469700,0.33845288,109310.0,109300.0,0.18816261]
[1756776469905,0.18301288,109310.0,109300.0,0.18816261]
[1756776472210,4.701e-05,109310.0,109300.0,0.34460261]
[1756776472428,4.701e-05,109310.0,109300.0,0.72634769]
[1756776472860,4.701e-05,109310.0,109300.0,0.79670769]
[1756776473265,4.701e-05,109310.0,109300.0,0.81764651]
[1756776473709,4.701e-05,109310.0,109300.0,1.15764651]
[1756776473924,4.701e-05,109310.0,109300.0,1.20764651]
[1756776474165,4.701e-05,109310.0,109300.0,1.60764651]
[1756776475246,4.701e-05,109310.0,109300.0,1.61064651]
[1756776475451,4.701e-05,109310.0,109300.0,1.60964651]
[1756776475909,4.701e-05,109310.0,109300.0,1.61464651]
[1756776476093,4.701e-05,109310.0,109300.0,1.60664651]
[1756776476335,4.701e-05,109310.0,109300.0,1.61064651]
[1756776476545,1e-08,109310.0,109300.0,1.9064756]
[1756776476805,1e-08,109310.0,109300.0,2.1263556]
[1756776477020,1e-08,109310.0,109300.0,2.1763556]
[1756776477441,1e-08,109310.0,109300.0,2.0209156]
[1756776477649,1e-08,109310.0,109300.0,2.1763156]
[1756776480074,1e-08,109310.0,109300.0,2.2038056]
[1756776480494,1e-08,109310.0,109300.0,2.3117056]
[1756776480721,1e-08,109310.0,109300.0,2.4671056]
[1756776481147,0.07354631,109360.0,109350.0,0.18289894]
[1756776481368,0.07354631,109360.0,109350.0,0.64247025]
[1756776481589,0.07354631,109360.0,109350.0,0.79554402]
[1756776481798,0.21033543,109380.0,109370.0,0.1828655]
[1756776482005,0.21033543,109380.0,109370.0,0.34051131]
[1756776482258,0.1926085,109380.0,109370.0,0.3382255]
[1756776482469,0.19274983,109380.0,109370.0,0.3382255]
[1756776483562,0.19274983,109380.0,109370.0,0.1828655]
[1756776483786,0.19274983,109380.0,109370.0,0.34151131]
[1756776484008,0.19274983,109380.0,109370.0,0.15636]
[1756776484231,0.19274983,109380.0,109370.0,0.15864581]
[1756776484714,0.19274983,109380.0,109370.0,0.00328581]
[1756776484953,0.19274983,109380.0,109370.0,0.001]
[1756776485180,0.53274983,109380.0,109370.0,0.001]
[1756776485396,0.85030582,109380.0,109370.0,0.001]
[1756776485618,0.90935864,109380.0,109370.0,0.001]
[1756776486274,0.90084811,109380.0,109370.0,0.001]
[1756776486486,0.90084811,109380.0,109330.0,0.33591778]
[1756776486487,0.18291506,109350.0,109330.0,0.33591778]
[1756776486700,0.18291567,109340.0,109330.0,0.4187147]
[1756776486914,0.18291567,109340.0,109330.0,0.5037147]
[1756776487144,0.18291567,109340.0,109330.0,0.5068847]
[1756776487398,0.18291567,109340.0,109330.0,0.43333839]
[1756776487596,0.18291567,109340.0,109330.0,0.27484839]
[1756776487803,0.18291567,109340.0,109330.0,0.43016839]
[1756776488125,0.18291567,109340.0,109330.0,0.43333839]
[1756776488341,0.18291567,109340.0,109330.0,0.43546839]
[1756776488972,0.18291506,109350.0,109330.0,0.43546839]
[1756776489447,0.18291567,109340.0,109330.0,0.27584839]
[1756776489666,0.18291567,109340.0,109330.0,0.15632]
[1756776490316,0.18291567,109340.0,109330.0,0.15532]
[1756776490532,0.1829324,109330.0,109320.0,0.00317]
[1756776490760,0.1829324,109330.0,109320.0,0.43335513]
[1756776491011,0.1829324,109330.0,109320.0,0.43548513]
[1756776491416,0.18291567,109340.0,109320.0,0.43548513]
[1756776491654,0.1829324,109330.0,109320.0,0.43548513]
[1756776492542,0.1829324,109330.0,109320.0,0.09191599]
[1756776492785,0.1829324,109330.0,109320.0,0.24723599]
[1756776493008,0.16404972,109340.0,109320.0,0.43748513]
[1756776493236,0.16404972,109340.0,109320.0,0.43948513]
[1756776493673,0.1829324,109330.0,109320.0,0.43535513]
[1756776493918,0.1829324,109330.0,109320.0,0.43548513]
[1756776494144,0.1829324,109330.0,109320.0,0.43648513]
[1756776495899,0.1829324,109330.0,109320.0,0.43748513]
[1756776501151,0.1829324,109330.0,109320.0,0.09708599]
[1756776501325,0.1829324,109330.0,109320.0,0.25236599]
[1756776501760,0.1829324,109330.0,109320.0,0.25449599]
[1756776502316,0.1829324,109330.0,109320.0,0.43744513]
[1756776502730,0.1829324,109330.0,109320.0,0.25449599]
[1756776504873,0.19222792,109330.0,109320.0,0.25449599]
[1756776505232,0.19222792,109330.0,109320.0,0.43744513]
[1756776505448,0.19222792,109330.0,109320.0,0.25449599]
[1756776507695,0.19222792,109330.0,109320.0,0.43744513]
[1756776512721,0.19222792,109330.0,109320.0,0.25449599]
[1756776518787,0.19222792,109330.0,109320.0,0.43744513]
[1756776520667,0.00929552,109330.0,109320.0,0.72706558]
[1756776521140,0.1829324,109330.0,109320.0,0.72706558]
[1756776521767,0.19241188,109330.0,109320.0,0.72706558]
[1756776522185,0.00947948,109330.0,109320.0,0.72706558]
[1756776522443,0.24413073,109350.0,109330.0,0.1829324]
[1756776522660,0.18291567,109340.0,109330.0,0.2919071]
[1756776522872,0.18291567,109340.0,109330.0,0.1573]
[1756776523294,0.18291567,109340.0,109330.0,0.16054]
[1756776523512,0.18291567,109340.0,109330.0,0.00324]
[1756776523698,0.1829324,109330.0,109320.0,0.09515599]
[1756776523957,0.19250007,109330.0,109320.0,0.25035599]
[1756776524181,0.19250007,109330.0,109320.0,0.25245599]
[1756776524918,0.19250007,109330.0,109320.0,0.43540513]
[1756776525578,0.19250007,109330.0,109320.0,0.43640513]
[1756776526097,0.00956767,109330.0,109320.0,0.43640513]
[1756776526302,0.00956767,109330.0,109320.0,0.72602558]
[1756776526430,0.1829324,109330.0,109320.0,0.72602558]
[1756776526630,0.1829324,109330.0,109320.0,0.43736513]
[1756776527032,0.18291567,109340.0,109320.0,0.43736513]
[1756776527232,0.18291567,109340.0,109320.0,0.43412513]
[1756776527435,0.1829324,109330.0,109320.0,0.43412513]
[1756776527678,0.1829324,109330.0,109320.0,0.43736513]
[1756776528051,0.1829324,109330.0,109320.0,0.43636513]
[1756776528682,0.18291567,109340.0,109320.0,0.43636513]
[1756776528892,0.19250903,109340.0,109330.0,0.00324]
[1756776529095,0.19250903,109340.0,109330.0,0.00534]
[1756776529301,0.19350903,109340.0,109330.0,0.00534]
[1756776529513,0.19350903,109340.0,109330.0,0.00324]
[1756776530114,0.1829324,109330.0,109320.0,0.43326513]
[1756776530323,0.1829324,109330.0,109320.0,0.43536513]
[1756776530537,0.19350903,109340.0,109330.0,0.1829324]
[1756776530740,0.001,109340.0,109330.0,0.85961594]
[1756776530948,0.001,109340.0,109330.0,0.92974929]
[1756776531153,0.001,109340.0,109330.0,0.95068811]
[1756776531572,0.001,109340.0,109330.0,0.81622766]
[1756776532195,0.18288259,109360.0,109350.0,0.18289894]
[1756776532397,0.18288259,109360.0,109350.0,0.33805894]
[1756776532628,0.18288259,109360.0,109350.0,0.34339894]
[1756776533624,0.19204673,109370.0,109350.0,0.34339894]
[1756776533859,0.00967054,109360.0,109350.0,0.34015894]
[1756776534066,0.001,109360.0,109350.0,0.62977939]
[1756776534458,0.001,109360.0,109350.0,0.63301939]
[1756776535580,0.001,109360.0,109350.0,0.72493538]
[1756776535824,0.001,109360.0,109350.0,0.79525538]
[1756776536054,0.001,109360.0,109350.0,0.79521538]
[1756776537387,0.0001413,109370.0,109360.0,0.18288222]
[1756776537584,0.0001413,109370.0,109360.0,0.47250267]
[1756776537796,0.0001413,109370.0,109360.0,0.47574267]
[1756776537997,0.0001413,109370.0,109360.0,0.47784267]
[1756776538559,0.0001413,109370.0,109360.0,0.63296267]
[1756776538772,0.707843,109390.0,109360.0,0.63296267]
[1756776538986,0.52285168,109380.0,109360.0,0.62972267]
[1756776539194,0.52285168,109380.0,109370.0,0.00324]
[1756776539435,0.52285168,109380.0,109370.0,0.15836]
[1756776539645,0.52285168,109380.0,109370.0,0.15512]
[1756776540069,0.52285168,109380.0,109370.0,0.15836]
[1756776540292,0.52285168,109380.0,109370.0,0.16046]
[1756776540509,0.1828655,109370.0,109360.0,0.18612222]
[1756776540716,0.1828655,109370.0,109360.0,0.34120222]
[1756776540926,0.1828655,109370.0,109360.0,0.34330222]
[1756776542433,0.1828655,109370.0,109360.0,0.18822222]
[1756776542653,0.1828655,109370.0,109360.0,0.34330222]
[1756776543062,0.1828655,109370.0,109360.0,0.34530222]
[1756776543302,0.1828655,109370.0,109360.0,0.19022222]
[1756776543531,0.1828655,109370.0,109360.0,0.34530222]
[1756776544649,0.52285168,109380.0,109360.0,0.34530222]
[1756776544896,0.34,109380.0,109370.0,0.1861055]
[1756776545110,0.56905367,109390.0,109380.0,0.18284878]
[1756776545338,0.54156767,109390.0,109380.0,0.34102878]
[1756776545523,0.54156767,109390.0,109380.0,0.34300878]
[1756776546731,0.54156767,109390.0,109380.0,0.16016]
[1756776547368,0.54256767,109390.0,109380.0,0.16016]
[1756776548105,0.54456767,109390.0,109380.0,0.16016]
[1756776548534,0.01253593,109390.0,109380.0,0.34300878]
[1756776548756,0.19536799,109390.0,109380.0,0.34300878]
[1756776549382,0.01253593,109390.0,109380.0,0.34300878]
[1756776549594,0.19536799,109390.0,109380.0,0.34300878]
[1756776551665,0.01253593,109390.0,109380.0,0.34300878]
[1756776552959,0.003,109390.0,109380.0,0.72421644]
[1756776553170,0.37456844,109410.0,109390.0,0.18282045]
[1756776553171,0.50424088,109410.0,109390.0,0.18282045]
[1756776553382,0.53217087,109410.0,109400.0,0.15504]
[1756776553592,0.53217087,109410.0,109400.0,0.15814]
[1756776554016,0.5413108,109410.0,109400.0,0.15814]
[1756776554859,0.5463108,109410.0,109400.0,0.15814]
[1756776555321,0.5483108,109410.0,109400.0,0.15814]
[1756776555720,0.5463108,109410.0,109400.0,0.15814]
[1756776556151,0.1828248,109400.0,109380.0,0.57319887]
[1756776556366,0.1828248,109400.0,109390.0,0.34093206]
[1756776556580,0.1828248,109400.0,109390.0,0.34291206]
[1756776557651,0.1828248,109400.0,109390.0,0.1581]
[1756776558076,0.1848248,109400.0,109390.0,0.1581]
[1756776558249,0.1858248,109400.0,109390.0,0.1581]
[1756776558452,0.1858248,109400.0,109390.0,0.34291206]
[1756776559025,0.1848248,109400.0,109390.0,0.34291206]
[1756776559250,0.1838248,109400.0,109390.0,0.34291206]
[1756776559859,0.1868248,109400.0,109390.0,0.34291206]
[1756776560303,0.19537293,109400.0,109390.0,0.34291206]
[1756776561082,0.19537293,109400.0,109390.0,0.18791206]
[1756776561276,0.19537293,109400.0,109390.0,0.16008]
[1756776561704,0.19537293,109400.0,109390.0,0.34291206]
[1756776562112,0.19537396,109400.0,109390.0,0.34291206]
[1756776565007,0.01254916,109400.0,109390.0,0.34291206]
[1756776566758,0.19536451,109400.0,109390.0,0.18791206]
[1756776566994,0.01254916,109400.0,109390.0,0.34287206]
[1756776568939,0.01255644,109400.0,109390.0,0.34287206]
[1756776569747,0.19537179,109400.0,109390.0,0.34287206]
[1756776570421,0.19537179,109400.0,109390.0,0.16]
[1756776570847,0.19537179,109400.0,109390.0,0.34283206]
[1756776572973,0.19537179,109400.0,109390.0,0.00508]
[1756776573280,0.19537179,109400.0,109390.0,0.16]
[1756776573890,0.19537179,109400.0,109390.0,0.34283206]
[1756776575220,0.19537179,109400.0,109390.0,0.16]
[1756776575421,0.19537179,109400.0,109390.0,0.34283206]
[1756776575622,0.19537179,109400.0,109390.0,0.34085206]
[1756776576010,0.19537179,109400.0,109390.0,0.34285206]
[1756776577266,0.19537179,109400.0,109390.0,0.0051]
[1756776577468,0.19537179,109400.0,109390.0,0.16002]
[1756776579351,0.18681535,109400.0,109390.0,0.16002]
[1756776579553,0.19538913,109400.0,109390.0,0.16002]
[1756776579868,0.21514355,109400.0,109390.0,0.15492]
[1756776581404,0.18283206,109390.0,109380.0,0.00313]
[1756776581589,0.19140584,109390.0,109380.0,0.15801]
[1756776581788,0.19140584,109390.0,109380.0,0.16001]
[1756776583690,0.19240584,109390.0,109380.0,0.16001]
[1756776584276,0.18284878,109380.0,109370.0,0.07345]
[1756776584489,0.18284878,109380.0,109370.0,0.23033]
[1756776585365,0.18284878,109380.0,109370.0,0.4131955]
[1756776586640,0.18284878,109380.0,109370.0,0.23033]
[1756776586878,0.18284878,109380.0,109370.0,0.07545]
[1756776587096,0.18284878,109380.0,109370.0,0.23033]
[1756776587942,0.18284878,109380.0,109370.0,0.4131955]
[1756776589629,0.18283206,109390.0,109370.0,0.4131955]
[1756776589837,0.18283206,109390.0,109380.0,0.00313]
[1756776590053,0.18283206,109390.0,109380.0,0.00513]
[1756776591172,0.18383206,109390.0,109380.0,0.00313]
[1756776591392,0.18284878,109380.0,109370.0,0.07345]
[1756776591603,0.18284878,109380.0,109370.0,0.4131555]
[1756776595652,0.18283206,109390.0,109370.0,0.4131555]
[1756776595829,0.18283206,109390.0,109370.0,0.4100255]
[1756776596073,0.18283206,109390.0,109380.0,0.00313]
[1756776597069,0.18383206,109390.0,109380.0,0.00313]
[1756776597291,0.18283206,109390.0,109380.0,0.00313]
[1756776597623,0.18383206,109390.0,109380.0,0.00313]
[1756776598799,0.18284878,109380.0,109370.0,0.40802153]
[1756776598982,0.18284878,109380.0,109370.0,0.41002153]
[1756776599396,0.18284878,109380.0,109370.0,0.41315153]
[1756776600345,0.18284878,109380.0,109370.0,0.07345]
[1756776600560,0.18287163,109370.0,109360.0,0.18601222]
[1756776600770,0.18287163,109370.0,109360.0,0.43476821]
[1756776601232,0.18284878,109380.0,109360.0,0.43476821]
[1756776601459,0.21945866,109390.0,109370.0,0.18828131]
[1756776601688,0.18284878,109380.0,109370.0,0.1859955]
[1756776601897,0.18284878,109380.0,109370.0,0.1879955]
[1756776602345,0.21945866,109390.0,109380.0,0.18284878]
[1756776602556,0.19197366,109390.0,109380.0,0.15993]
[1756776603431,0.21943911,109400.0,109380.0,0.34506438]
[1756776603669,0.21943911,109400.0,109390.0,0.00313]
[1756776603887,0.19195611,109400.0,109390.0,0.00513]
[1756776604314,0.19195611,109400.0,109390.0,0.00413]
[1756776604527,0.18283206,109390.0,109380.0,0.1548]
[1756776604733,0.18284878,109380.0,109370.0,0.2806655]
[1756776604954,0.18284878,109380.0,109370.0,0.50190149]
[1756776605361,0.18284878,109380.0,109370.0,0.34710149]
[1756776605576,0.18284878,109380.0,109370.0,0.50190149]
[1756776606399,0.18283206,109390.0,109370.0,0.50483149]
[1756776606599,0.18283206,109390.0,109370.0,0.50190149]
[1756776606832,0.18283206,109390.0,109380.0,0.00293]
[1756776607047,0.18283206,109390.0,109380.0,0.00498]
[1756776607558,0.18283206,109390.0,109380.0,0.18782878]
[1756776607798,0.55943911,109400.0,109390.0,0.18283206]
[1756776608024,0.53195611,109400.0,109390.0,0.33968206]
[1756776608252,0.53195611,109400.0,109390.0,0.34261206]
[1756776608498,0.53195611,109400.0,109390.0,0.15978]
[1756776608965,0.53195611,109400.0,109390.0,0.00498]
[1756776609195,0.53195611,109400.0,109390.0,0.1548]
[1756776609432,0.18283206,109390.0,109370.0,0.35424476]
[1756776609654,0.18283206,109390.0,109380.0,0.00205]
[1756776609875,0.18284878,109380.0,109370.0,0.34510149]
[1756776610137,0.18284878,109380.0,109370.0,0.50488149]
[1756776610347,0.18283206,109390.0,109370.0,0.50488149]
[1756776610557,0.18283206,109390.0,109380.0,0.00293]
[1756776611031,0.18283206,109390.0,109380.0,0.19011438]
[1756776611287,0.71423911,109400.0,109380.0,0.18782878]
[1756776611508,0.18283206,109390.0,109380.0,0.18782878]
[1756776613238,0.55943911,109400.0,109380.0,0.18782878]
[1756776613429,0.18283206,109390.0,109380.0,0.18489878]
[1756776614144,0.18283206,109390.0,109380.0,0.18782878]
[1756776614340,0.18283206,109390.0,109380.0,0.15974]
[1756776614602,0.18283206,109390.0,109380.0,0.34258878]
[1756776615021,0.18283206,109390.0,109380.0,0.34358878]
[1756776615448,0.53195611,109400.0,109380.0,0.34358878]
[1756776615672,0.68671611,109400.0,109380.0,0.34065878]
[1756776615869,0.68671611,109400.0,109390.0,0.00293]
[1756776616065,0.68671611,109400.0,109390.0,0.00498]
[1756776616271,0.70647113,109400.0,109390.0,0.00498]
[1756776616514,0.18283206,109390.0,109380.0,0.34153878]
[1756776616891,0.18283206,109390.0,109380.0,0.34258878]
[1756776617237,0.68771611,109400.0,109380.0,0.34258878]
[1756776617461,0.68771611,109400.0,109380.0,0.33965878]
[1756776617630,0.68771611,109400.0,109390.0,0.00293]
[1756776617864,0.53295611,109400.0,109390.0,0.00498]
[1756776618068,0.53195611,109400.0,109390.0,0.00498]
[1756776618417,0.55943611,109400.0,109390.0,0.00498]
[1756776620159,0.56043611,109400.0,109390.0,0.00498]
[1756776620931,0.56043611,109400.0,109390.0,0.00293]
[1756776621178,0.18283206,109390.0,109380.0,0.15476]
[1756776621662,0.18283206,109390.0,109380.0,0.33965878]
[1756776622098,0.18283206,109390.0,109380.0,0.34258878]
[1756776622776,0.18283206,109390.0,109380.0,0.18782878]
[1756776622983,0.18283206,109390.0,109380.0,0.34258878]
[1756776623352,0.18283206,109390.0,109380.0,0.18782878]
[1756776623561,0.18283206,109390.0,109380.0,0.34254878]
[1756776623950,0.18283206,109390.0,109380.0,0.34354878]
[1756776624546,0.55029535,109400.0,109390.0,0.18283206]
[1756776624762,0.20116958,109410.0,109390.0,0.19009746]
[1756776624988,0.7432625,109410.0,109400.0,0.00293]
[1756776625196,0.7432625,109410.0,109400.0,0.18574535]
[1756776625406,0.7235088,109410.0,109400.0,0.18779535]
[1756776625615,0.7235088,109410.0,109400.0,0.18679535]
[1756776625829,0.7235088,109410.0,109400.0,0.00398]
[1756776626037,0.7235088,109410.0,109400.0,0.18679535]
[1756776626907,0.5687888,109410.0,109400.0,0.34151535]
[1756776627565,0.5707888,109410.0,109400.0,0.34151535]
[1756776627777,0.5697888,109410.0,109400.0,0.00398]
[1756776627995,0.5697888,109410.0,109400.0,0.1587]
[1756776628173,0.5696388,109410.0,109400.0,0.1597]
[1756776629261,0.5687888,109410.0,109400.0,0.1597]
[1756776630178,0.5696388,109410.0,109400.0,0.1597]
[1756776630326,0.5696388,109410.0,109400.0,0.00498]
[1756776631690,0.5696388,109410.0,109400.0,0.18779535]
[1756776631893,0.5696388,109410.0,109400.0,0.00498]
[1756776633554,0.5687888,109410.0,109400.0,0.18779535]
[1756776634646,0.5687888,109410.0,109400.0,0.00498]
[1756776634993,0.5696388,109410.0,109400.0,0.00498]
[1756776635522,0.5696388,109410.0,109400.0,0.001]
[1756776636121,0.5696388,109410.0,109400.0,0.00412]
[1756776636323,0.5696388,109410.0,109400.0,0.00622]
[1756776637836,0.5696388,109410.0,109400.0,0.001]
[1756776638260,0.5696388,109410.0,109400.0,0.00412]
[1756776638478,0.5696388,109410.0,109400.0,0.00622]
[1756776638728,0.0368201,109410.0,109400.0,0.18903535]
[1756776638941,0.19214074,109410.0,109400.0,0.18903535]
[1756776640081,0.00014122,109410.0,109400.0,0.18903535]
[1756776640298,0.00014122,109410.0,109400.0,0.64055194]
[1756776640958,0.00014122,109410.0,109400.0,0.35123134]
[1756776641927,0.00014122,109410.0,109400.0,0.50587134]
[1756776643214,0.00014122,109410.0,109400.0,0.35123134]
[1756776643383,0.00014122,109410.0,109400.0,0.50587134]
[1756776645551,0.00014122,109410.0,109400.0,0.35123134]
[1756776645787,0.00014122,109410.0,109400.0,0.53334434]
[1756776650692,0.00014122,109410.0,109400.0,0.50587134]
[1756776653212,0.02278034,109430.0,109410.0,0.18278591]
[1756776653452,0.20562284,109430.0,109420.0,0.00228477]
[1756776653678,0.20647284,109430.0,109420.0,0.15688477]
[1756776654533,0.20747284,109430.0,109420.0,0.15688477]
[1756776654953,0.2156111,109430.0,109420.0,0.15688477]
[1756776655485,0.2176111,109430.0,109420.0,0.15688477]
[1756776656283,0.2166111,109430.0,109420.0,0.15688477]
[1756776656897,0.2176111,109430.0,109420.0,0.15688477]
[1756776657894,0.2176111,109430.0,109420.0,0.00228477]
[1756776658077,0.2161411,109430.0,109420.0,0.15684477]
[1756776658282,0.2161411,109430.0,109420.0,0.15784477]
[1756776658536,0.2156111,109430.0,109420.0,0.00328477]
[1756776658750,0.2161411,109430.0,109420.0,0.001]
[1756776659186,0.2156111,109430.0,109420.0,0.001]
[1756776660673,0.2156111,109430.0,109420.0,0.0031]
[1756776660894,0.2156111,109430.0,109420.0,0.00412]
[1756776661341,0.2156111,109430.0,109420.0,0.00622]
[1756776661754,0.2156111,109430.0,109420.0,0.15556]
[1756776662801,0.2156111,109430.0,109420.0,0.001]
[1756776664514,0.2156111,109430.0,109420.0,0.00412]
[1756776665057,0.2156111,109430.0,109420.0,0.001]
[1756776666515,0.01003531,109430.0,109420.0,0.001]
[1756776666724,0.03750831,109430.0,109420.0,0.001]
[1756776667184,0.22943651,109430.0,109420.0,0.001]
[1756776667608,0.22858651,109430.0,109420.0,0.00632]
[1756776668065,0.22858651,109430.0,109420.0,0.18910194]
[1756776668510,0.22943651,109430.0,109420.0,0.001]
[1756776668950,0.22943651,109430.0,109420.0,0.00423]
[1756776670383,0.22943651,109430.0,109420.0,0.00632]
[1756776671057,0.22943651,109430.0,109420.0,0.001]
[1756776673028,0.22943651,109430.0,109420.0,0.00309]
[1756776673250,0.22858651,109430.0,109420.0,0.00632]
[1756776673923,0.22943651,109430.0,109420.0,0.00632]
[1756776674139,0.22943651,109430.0,109420.0,0.00423]
[1756776674347,0.22943651,109430.0,109420.0,0.001]
[1756776674992,0.22858651,109430.0,109420.0,0.00632]
[1756776675207,0.22943651,109430.0,109420.0,0.00423]
[1756776676341,0.24919894,109430.0,109420.0,0.00423]
[1756776677320,0.24919894,109430.0,109420.0,0.001]
[1756776679566,0.24919894,109430.0,109420.0,0.00423]
[1756776680128,0.24919894,109430.0,109420.0,0.001]
[1756776683456,0.24919894,109430.0,109420.0,0.00632]
[1756776684625,0.05390992,109430.0,109420.0,0.00632]
[1756776684876,0.08138392,109430.0,109420.0,0.00632]
[1756776685098,0.09052218,109430.0,109420.0,0.00632]
[1756776685634,0.09137218,109430.0,109420.0,0.00423]
[1756776685872,0.09137218,109430.0,109420.0,0.001]
[1756776686149,0.09137218,109430.0,109420.0,0.00423]
[1756776686354,0.09052218,109430.0,109420.0,0.00632]
[1756776686608,0.09137218,109430.0,109420.0,0.00632]
[1756776686813,0.09137218,109430.0,109420.0,0.001]
[1756776687393,0.43190218,109430.0,109420.0,0.001]
[1756776687596,0.46024763,109430.0,109420.0,0.001]
[1756776688038,0.45971763,109430.0,109420.0,0.001]
[1756776688262,0.61415763,109430.0,109420.0,0.00323]
[1756776688710,0.18278194,109420.0,109410.0,0.00323]
[1756776689145,0.18278194,109420.0,109410.0,0.00532]
[1756776689506,0.18278194,109420.0,109410.0,0.18811864]
[1756776690342,0.18278194,109420.0,109410.0,0.19011864]
[1756776691576,0.18278194,109420.0,109410.0,0.00732]
[1756776692238,0.18363194,109420.0,109410.0,0.002]
[1756776692449,0.18363194,109420.0,109410.0,0.15644]
[1756776692661,0.18363194,109420.0,109410.0,0.15967]
[1756776694822,0.18278194,109420.0,109410.0,0.15967]
[1756776695223,0.18278194,109420.0,109410.0,0.0072]
[1756776695464,0.18278194,109420.0,109410.0,0.34443864]
[1756776698625,0.72298046,109430.0,109410.0,0.34443864]
[1756776698902,0.56854046,109430.0,109420.0,0.00317]
[1756776699110,0.56854046,109430.0,109420.0,0.00514]
[1756776699799,0.18278194,109420.0,109410.0,0.09191599]
[1756776700031,0.18278194,109420.0,109410.0,0.42915463]
[1756776700242,0.18278194,109420.0,109410.0,0.43112463]
[1756776700677,0.18278194,109420.0,109410.0,0.43429463]
[1756776701493,0.18278194,109420.0,109410.0,0.43729463]
[1756776702124,0.56534764,109430.0,109410.0,0.43729463]
[1756776702338,0.56534764,109430.0,109420.0,0.00317]
[1756776702570,0.56534764,109430.0,109420.0,0.00514]
[1756776702775,0.22534764,109430.0,109420.0,0.18792194]
[1756776702985,0.00593993,109430.0,109420.0,0.18792194]
[1756776703203,0.18870516,109430.0,109420.0,0.18792194]
[1756776703410,0.18276523,109430.0,109420.0,0.18792194]
[1756776703834,0.18276523,109430.0,109420.0,0.18992194]
[1756776704056,0.027472,109440.0,109430.0,0.18276523]
[1756776704271,0.0002,109450.0,109440.0,0.18274853]
[1756776704507,0.02813862,109450.0,109440.0,0.19017288]
[1756776704717,0.00067062,109450.0,109440.0,0.18788853]
[1756776705196,0.18340246,109450.0,109440.0,0.18788853]